fUST/lending_fUST_20240506
["ID","MTS","AMOUNT","RATE_DAILY","PERIOD"]
[326474558,1714971036338,-500.0,0.00019178,2]
[326474559,1714971036349,-500.0,0.00019178,2]
[326474560,1714971036358,-521.98694719,0.00019178,2]
[326474561,1714971036368,-500.0,0.00019178,2]
[326474562,1714971036377,-151.0,0.00019178,2]
[326474563,1714971036387,-613.21,0.00019178,2]
[326474564,1714971036397,-500.0,0.00019178,2]
[326474565,1714971036407,-500.0,0.00019178,2]
[326474566,1714971036416,-514.23210264,0.00019178,2]
[326474567,1714971036426,-734.74,0.00019178,2]
[326474568,1714971036436,-963.57,0.00019178,2]
[326474569,1714971036446,-511.74055585,0.00019178,2]
[326474570,1714971036455,-500.0,0.00019178,2]
[326474571,1714971036466,-223.94705763,0.00019178,2]
[326474572,1714971036476,-500.0,0.00019178,2]
[326474573,1714971036485,-505.71089171,0.00019178,2]
[326474574,1714971036495,-523.88733178,0.00019178,2]
[326474575,1714971036504,-512.40340314,0.00019178,2]
[326474576,1714971036514,-500.0,0.00019178,2]
[326474577,1714971036524,-500.0,0.00019178,2]
[326474578,1714971036533,-1393.71,0.00019178,2]
[326474579,1714971036543,-500.0,0.00019178,2]
[326474580,1714971036552,-703.78,0.00019178,2]
[326474581,1714971036572,-501.89193677,0.00019178,2]
[326474582,1714971036585,-774.89,0.00019178,2]
[326474583,1714971036595,-500.0,0.00019178,2]
[326474584,1714971036606,-500.0,0.00019178,2]
[326474585,1714971036616,-1603.9,0.00019178,2]
[326474586,1714971036638,-500.0,0.00019178,2]
[326474587,1714971036648,-2075.91,0.00019178,2]
[326474588,1714971036658,-515.70229994,0.00019178,2]
[326474589,1714971036668,-500.0,0.00019178,2]
[326474590,1714971036679,-500.0,0.00019178,2]
[326474591,1714971036690,-500.0,0.00019178,2]
[326474592,1714971036700,-500.0,0.00019178,2]
[326474593,1714971036711,-500.0,0.00019178,2]
[326474594,1714971036722,-500.0,0.00019178,2]
[326474595,1714971036733,-500.0,0.00019178,2]
[326474596,1714971036744,-562.91787583,0.00019178,2]
[326474597,1714971036754,-362.26743732,0.00019178,2]
[326474598,1714971036764,-500.0,0.00019178,2]
[326474599,1714971036775,-500.0,0.00019178,2]
[326474600,1714971036785,-500.0,0.00019178,2]
[326474601,1714971036795,-500.0,0.00019178,2]
[326474602,1714971036806,-544.67989328,0.00019178,2]
[326474603,1714971036816,-500.0,0.00019178,2]
[326474604,1714971036826,-709.4,0.00019178,2]
[326474605,1714971036836,-500.0,0.00019178,2]
[326474606,1714971036851,-490.7179869,0.00019178,2]
[326474607,1714971036861,-500.0,0.00019178,2]
[326474608,1714971036871,-503.28325368,0.00019178,2]
[326474609,1714971036880,-1053.49,0.00019178,2]
[326474610,1714971036891,-603.9,0.00019178,2]
[326474611,1714971036901,-660.01,0.00019178,2]
[326474612,1714971036910,-661.89,0.00019178,2]
[326474613,1714971036920,-654.02,0.00019178,2]
[326474614,1714971036932,-3886.78,0.00019178,2]
[326474615,1714971036942,-500.0,0.00019178,2]
[326474616,1714971036955,-500.0,0.00019178,2]
[326474617,1714971036965,-500.0,0.00019178,2]
[326474618,1714971036976,-500.0,0.00019178,2]
[326474619,1714971036986,-793.28,0.00019178,2]
[326474620,1714971036995,-1021.0,0.00019178,2]
[326474621,1714971037005,-500.0,0.00019178,2]
[326474622,1714971037015,-638.98140544,0.00019178,2]
[326474623,1714971037026,-472.13548612,0.00019178,2]
[326474624,1714971037036,-643.11,0.00019178,2]
[326474625,1714971037046,-946.22,0.00019178,2]
[326474626,1714971037056,-500.0,0.00019178,2]
[326474627,1714971037066,-500.0,0.00019178,2]
[326474628,1714971037076,-500.0,0.00019178,2]
[326474629,1714971037086,-500.0,0.00019178,2]
[326474630,1714971037096,-500.0,0.00019178,2]
[326474631,1714971037106,-527.98749552,0.00019178,2]
[326474632,1714971037116,-290.82291557,0.00019178,2]
[326474633,1714971037126,-500.0,0.00019178,2]
[326474634,1714971037136,-534.17435807,0.00019178,2]
[326474635,1714971037146,-500.0,0.00019178,2]
[326474636,1714971037156,-2101.96,0.00019178,2]
[326474637,1714971037166,-500.0,0.00019178,2]
[326474638,1714971037176,-500.0,0.00019178,2]
[326474639,1714971037186,-870.19,0.00019178,2]
[326474640,1714971037196,-500.0,0.00019178,2]
[326474641,1714971037206,-500.0,0.00019178,2]
[326474642,1714971037216,-500.0,0.00019178,2]
[326474643,1714971037226,-500.0,0.00019178,2]
[326474644,1714971037236,-892.84,0.00019178,2]
[326474645,1714971037246,-877.51,0.00019178,2]
[326474646,1714971037256,-500.0,0.00019178,2]
[326474647,1714971037265,-500.0,0.00019178,2]
[326474648,1714971037275,-500.0,0.00019178,2]
[326474649,1714971037285,-500.0,0.00019178,2]
[326474650,1714971037295,-500.0,0.00019178,2]
[326474651,1714971037305,-1913.67,0.00019178,2]
[326474652,1714971037315,-500.0,0.00019178,2]
[326474653,1714971037325,-500.07732716,0.00019178,2]
[326474654,1714971037335,-500.0,0.00019178,2]
[326474655,1714971037345,-500.0,0.00019178,2]
[326474656,1714971037355,-500.0,0.00019178,2]
[326474657,1714971037365,-500.0,0.00019178,2]
[326474658,1714971037375,-500.0,0.00019178,2]
[326474659,1714971037385,-500.0,0.00019178,2]
[326474660,1714971037396,-509.14353282,0.00019178,2]
[326474661,1714971037405,-500.0,0.00019178,2]
[326474662,1714971037416,-500.0,0.00019178,2]
[326474663,1714971037426,-500.0,0.00019178,2]
[326474664,1714971037436,-500.0,0.00019178,2]
[326474666,1714971037446,-500.0,0.00019178,2]
[326474668,1714971037456,-500.0,0.00019178,2]
[326474670,1714971037466,-500.0,0.00019178,2]
[326474672,1714971037475,-500.0,0.00019178,2]
[326474674,1714971037488,-500.0,0.00019178,2]
[326474676,1714971037497,-2389.54,0.00019178,2]
[326474678,1714971037509,-500.0,0.00019178,2]
[326474680,1714971037518,-500.0,0.00019178,2]
[326474682,1714971037528,-500.0,0.00019178,2]
[326474684,1714971037537,-672.91,0.00019178,2]
[326474686,1714971037547,-500.1349442,0.00019178,2]
[326474688,1714971037557,-500.0,0.00019178,2]
[326474690,1714971037566,-500.0,0.00019178,2]
[326474691,1714971037576,-1051.98,0.00019178,2]
[326474692,1714971037586,-283.35564019,0.00019178,2]
[326474701,1714971038639,-216.64435981,0.00019178,2]
[326474702,1714971038651,-766.58,0.00019178,2]
[326474703,1714971038661,-758.88,0.00019178,2]
[326474704,1714971038670,-500.0,0.00019178,2]
[326474705,1714971038680,-355.69054559,0.00019178,2]
[326474735,1714971047291,-798.38,0.00019168,3]
[326474736,1714971047301,-999.51458958,0.00019178,2]
[326474737,1714971051974,173.68061,0.0001589,2]
[326474738,1714971175293,540.48898221,0.0001589,2]
[326474745,1714971588861,22995.03952073,0.00025,60]
[326474746,1714971615678,164.27828,0.0001589,2]
[326474747,1714972029130,-266.77821617,0.00017258,2]
[326474748,1714972041116,-216.73283694,0.00017258,2]
[326474749,1714972041140,-3064.9783345,0.00018079,2]
[326474750,1714972041162,-315.47842132,0.00018817,2]
[326474751,1714972042168,-177.52157868,0.00018817,2]
[326474752,1714972042190,-150.0,0.00018817,2]
[326474753,1714972042213,-151.24914043,0.00019078,2]
[326474754,1714972042235,-726.0858746,0.00019078,2]
[326474786,1714972232585,-1083.33243758,0.00019078,2]
[326474810,1714972239221,-190.58168782,0.00019078,2]
[326474812,1714972239230,-225.349,0.00019146,2]
[326474814,1714972239240,-250.0,0.00019146,2]
[326474817,1714972239250,-1582.88178991,0.00019176,2]
[326474818,1714972239261,-1378.53720371,0.00019176,2]
[326474821,1714972239274,-1493.5421064,0.00019176,2]
[326474823,1714972239283,-478.60328151,0.00019176,2]
[326474827,1714972239293,-7385.28450394,0.00019176,2]
[326474959,1714972244147,-1723.26729267,0.00019176,2]
[326474968,1714972244274,-2833.41371635,0.00019176,2]
[326474974,1714972244713,-844.10691679,0.00019176,2]
[326474986,1714972247525,250.0,0.00018183,2]
[326474987,1714972468696,315.23619623,9.999e-05,2]
[326474988,1714972957327,281.87746121,9.999e-05,2]
[326474989,1714972975016,280.95378719,9.999e-05,2]
[326474990,1714972995481,322.82707881,9.999e-05,2]
[326474991,1714973168842,309.16301887,9.999e-05,2]
[326474992,1714973180588,348.987969,0.0001589,2]
[326474993,1714973242551,-2750.0,0.00017949,2]
[326474994,1714973250147,-671.02480693,0.00017949,2]
[326475005,1714973352468,-1073.12317497,0.00017949,2]
[326475006,1714973352489,-14864.23764688,0.00017949,2]
[326475007,1714973352511,-182.08328321,0.00017949,2]
[326475008,1714973352531,-159.6498128,0.00017949,2]
[326475009,1714973352552,-671.02480693,0.00018183,2]
[326475010,1714973352573,-929.30313536,0.00018217,2]
[326475125,1714973440099,-184.8984427,0.000189,2]
[326475128,1714973440111,-152.63881399,0.00019078,2]
[326475129,1714973440123,-429.4086996,0.000191,2]
[326475131,1714973440140,-217.89301938,0.000191,2]
[326475147,1714973441071,-185.62990212,0.000191,2]
[326475148,1714973441084,-150.0,0.00019146,2]
[326475149,1714973441096,-493.0,0.00019146,2]
[326475150,1714973441110,-2132.67627155,0.00019176,2]
[326475302,1714973448112,-1532.84180828,0.00019176,2]
[326475462,1714973458944,186.51990005,9.999e-05,2]
[326475463,1714973464418,929.6379252,0.00018217,2]
[326475464,1714973473992,284.29807878,9.999e-05,2]
[326475465,1714973474366,940.45532708,0.00015,2]
[326475466,1714973474590,469.39449574,9.999e-05,2]
[326475467,1714973476526,1347.83105685,9.999e-05,2]
[326475468,1714973478567,1679.9461229,0.00015,2]
[326475469,1714973478837,154.64431807,9.999e-05,2]
[326475470,1714973482122,154.64431807,9.999e-05,2]
[326475471,1714973483366,793.57313981,9.999e-05,2]
[326475472,1714973484379,154.64431807,9.999e-05,2]
[326475473,1714973486087,377.52925337,0.00018217,2]
[326475474,1714973491354,604.49379352,0.000185,2]
[326475475,1714973495304,154.64431807,9.999e-05,2]
[326475476,1714973495338,891.78321606,9.999e-05,2]
[326475477,1714973496100,550.61375639,9.999e-05,2]
[326475478,1714973499519,744.35757128,0.000138,2]
[326475479,1714973505642,527.42048756,9.999e-05,2]
[326475480,1714973506613,212.51969567,9.999e-05,2]
[326475481,1714973509298,475.70095174,9.999e-05,2]
[326475482,1714973518418,154.64431807,9.999e-05,2]
[326475483,1714973525747,413.80157856,9.999e-05,2]
[326475484,1714973529195,584.11436245,9.999e-05,2]
[326475485,1714973530422,158.13417593,9.999e-05,2]
[326475486,1714973532698,206.61730233,9.999e-05,2]
[326475487,1714973538997,522.62516636,9.999e-05,2]
[326475488,1714973546218,135.95395536,9.999e-05,2]
[326475489,1714973546538,1357.39194714,9.999e-05,2]
[326475491,1714973704972,313.493469,0.0001589,2]
[326475493,1714973773867,309.16301887,9.999e-05,2]
[326475501,1714974028048,521.0,0.00015,2]
[326475516,1714974134414,744.35757128,0.000138,2]
[326475517,1714974214199,522.62516636,9.999e-05,2]
[326475518,1714974223472,173.68061,0.0001589,2]
[326475519,1714974293789,893.97688809,0.00016,2]
[326475522,1714974442368,-165.62606265,0.00017383,2]
[326475523,1714974546593,-1893.83301406,0.00017378,2]
[326475524,1714974546800,-3054.9715797,0.00017378,2]
[326475525,1714974546880,-893.97688809,0.00017378,2]
[326475526,1714974547013,-521.0,0.00017379,2]
[326475527,1714974547171,-2103.48558965,0.00017396,2]
[326475528,1714974547606,-24443.0771906,0.00017397,2]
[326475529,1714974553302,-154.64431807,0.00018217,2]
[326475530,1714974553547,-1631.58216594,0.000187,2]
[326475531,1714974584381,154.87581232,0.00018217,2]
[326475554,1714974633447,-521.0,0.00018898,2]
[326475556,1714974633456,-31.72494088,0.00018899,2]
[326475558,1714974633535,-534.602378,0.00018899,2]
[326475559,1714974633548,-327.64956921,0.00018899,2]
[326475560,1714974633557,-150.0,0.000189,2]
[326475561,1714974633567,-208.30029827,0.000189,2]
[326475562,1714974633576,-16.21650763,0.00018945,2]
[326475601,1714974639286,-192.08379064,0.00018945,2]
[326475602,1714974639295,-208.30029827,0.00018989,2]
[326475603,1714974639304,-99.61591109,0.00019,2]
[326475661,1714974713267,165.845338,0.0001589,2]
[326475662,1714974760722,284.29807878,9.999e-05,2]
[326475663,1714974766981,744.35757128,0.000138,2]
[326475664,1714974821372,236.07687408,9.999e-05,2]
[326475669,1714975271942,521.0,0.00015,2]
[326475670,1714975280599,893.97688809,0.00016,2]
[326475673,1714975644178,-1538.28373479,0.00018668,2]
[326475674,1714975645359,-5871.82639138,0.00018667,2]
[326475675,1714975651312,-9816.71479924,0.00018667,2]
[326475676,1714975651561,-1516.68784491,0.00018668,2]
[326475677,1714975651813,-893.97688809,0.00018669,2]
[326475678,1714975652066,-521.0,0.0001867,2]
[326475679,1714975652321,-150.0,0.00018852,2]
[326475680,1714975652891,-150.0,0.000189,2]
[326475681,1714975653141,-153.0,0.00019,2]
[326475682,1714975653372,-153.0,0.00019,2]
[326475683,1714975653612,-153.0,0.00019,2]
[326475684,1714975653636,-208.30029827,0.00019076,2]
[326475685,1714975653657,-154.39,0.00019076,2]
[326475686,1714975653678,-1159.50158627,0.00019076,2]
[326475687,1714975699908,154.64431807,9.999e-05,2]
[326475690,1714975781680,154.64431807,0.00015,2]
[326475691,1714975784842,309.16301887,9.999e-05,2]
[326475692,1714975791427,745.42033975,0.00017257,2]
[326475693,1714975793886,574.01945909,9.999e-05,2]
[326475694,1714975795086,236.07687408,9.999e-05,2]
[326475695,1714975796903,154.70605849,0.00018215,2]
[326475697,1714975803274,584.11436245,9.999e-05,2]
[326475698,1714975809006,223.25724002,9.999e-05,2]
[326475699,1714975809469,929.47917741,0.00018215,2]
[326475700,1714975810931,769.97551352,0.00017257,2]
[326475701,1714975818923,1396.4736443,9.999e-05,2]
[326475702,1714975829124,769.97551352,0.00017257,2]
[326475703,1714975830474,473.60917883,9.999e-05,2]
[326475724,1714975833043,-533.98601063,0.00018901,2]
[326475725,1714975833311,-410.3852,0.00018901,2]
[326475726,1714975833325,-1208.34442755,0.00018901,2]
[326475727,1714975833335,-1881.78834853,0.00018902,2]
[326475728,1714975833345,-1000.0,0.00018903,2]
[326475729,1714975833355,-20217.7745566,0.00018907,2]
[326475730,1714975833364,-1000.0,0.00018908,2]
[326475731,1714975833374,-1000.0,0.00018958,2]
[326475732,1714975833384,-165.7758131,0.00018984,2]
[326475733,1714975833396,-5000.0,0.00019,2]
[326475734,1714975833416,-155.38469057,0.00019,2]
[326475735,1714975833425,-842.10577726,0.00019007,2]
[326475736,1714975833435,-1000.0,0.00019067,2]
[326475737,1714975833444,-2629.30064722,0.00019067,2]
[326475738,1714975833455,-1000.0,0.00019068,2]
[326475739,1714975833465,-893.97688809,0.00019073,2]
[326475740,1714975833482,-208.30029827,0.00019076,2]
[326475741,1714975833491,-740.78985914,0.00019077,2]
[326475742,1714975833502,-154.39,0.00019077,2]
[326475743,1714975833512,-174.73245347,0.00019078,2]
[326475744,1714975833522,-510.4508801,0.00019078,2]
[326475782,1714975839710,-521.0,0.000189,2]
[326475783,1714975839720,-2629.30064722,0.000189,2]
[326475785,1714975839730,-1699.83134353,0.00019,2]
[326475802,1714975842271,-317.51040872,0.00019,2]
[326475815,1714975843954,2395.29274351,0.00015,2]
[326475826,1714975845776,4234.1215094,9.999e-05,2]
[326475829,1714975847479,-1382.87460767,0.00018899,2]
[326475830,1714975848460,740.08972229,9.999e-05,2]
[326475831,1714975848696,53.48341752,9.999e-05,2]
[326475832,1714975849203,726.00803731,0.00017257,2]
[326475833,1714975850907,154.70605849,0.00018217,2]
[326475834,1714975853234,1493.3459025,9.999e-05,2]
[326475835,1714975854691,154.67518212,9.999e-05,2]
[326475836,1714975865615,769.81891506,0.00017258,2]
[326475837,1714975875310,154.67518212,9.999e-05,2]
[326475838,1714975883110,154.92205436,0.00018215,2]
[326475839,1714975883684,3147.54265789,0.00018,7]
[326475840,1714975886889,154.67518212,9.999e-05,2]
[326475841,1714975889128,1553.21115495,9.999e-05,2]
[326475842,1714975889690,159.70564555,9.999e-05,2]
[326475843,1714975890135,189.6084924,0.00018,2]
[326475844,1714975893129,1623.43487535,9.999e-05,2]
[326475845,1714975894261,154.67518212,9.999e-05,2]
[326475846,1714975896901,1578.28854487,9.998e-05,2]
[326475847,1714975903788,1379.74743314,9.999e-05,2]
[326475848,1714975912302,252.70715286,9.999e-05,2]
[326475849,1714975916046,3455.83254005,9.999e-05,2]
[326475850,1714975918642,3455.83254005,9.999e-05,2]
[326475851,1714975920915,2455.16946522,9.999e-05,2]
[326475852,1714975921234,1000.66307483,9.999e-05,2]
[326475853,1714975923306,3455.83254005,9.999e-05,2]
[326475854,1714975926469,3455.83254005,9.999e-05,2]
[326475855,1714975929995,284.29807878,9.999e-05,2]
[326475856,1714975930325,3455.83254005,9.999e-05,2]
[326475857,1714975932625,2770.71992724,9.999e-05,2]
[326475858,1714975932886,685.11261281,9.999e-05,2]
[326475859,1714975934857,3455.83254005,9.999e-05,2]
[326475860,1714975938557,154.67518212,9.999e-05,2]
[326475861,1714975939559,3455.83254005,9.999e-05,2]
[326475862,1714975942941,11251.13126349,0.00017857,2]
[326475863,1714975977045,522.62516636,9.999e-05,2]
[326475864,1714976007944,718.58825554,9.999e-05,2]
[326475865,1714976030635,406.29377354,0.00016438,2]
[326475866,1714976058953,250.0,0.00016369,2]
[326475867,1714976070371,366.631154,0.0001589,2]
[326475868,1714976071607,2192.106853,0.00016369,2]
[326475869,1714976136976,2980.4397772,0.0001615,2]
[326475870,1714976167753,25307.9260219,0.00016113,2]
[326475871,1714976190278,21688.3181453,0.00016091,2]
[326475872,1714976204337,1274.9294475,0.00016249,2]
[326475873,1714976215756,198.3491333,0.00016045,2]
[326475874,1714976281130,1019.5977304,0.00016039,2]
[326475875,1714976282134,794.8939744,0.00016039,2]
[326475876,1714976296347,583.80837413,0.00016935,2]
[326475877,1714976404327,309.16301887,9.999e-05,2]
[326475878,1714976420916,154.64431807,0.00015,2]
[326475879,1714976424031,584.11436245,9.999e-05,2]
[326475880,1714976449194,893.97688809,0.00016,2]
[326475881,1714976453997,793.57313981,9.999e-05,2]
[326475882,1714976456106,1396.4736443,9.999e-05,2]
[326475883,1714976458437,521.0,0.00015,2]
[326475884,1714976483996,1493.3459025,9.999e-05,2]
[326475885,1714976576183,1712.9168005,9.999e-05,2]
[326475886,1714976584990,24900.0,0.00016893,2]
[326475887,1714976589901,297.818795,0.0001589,2]
[326475888,1714976614757,769.97551352,0.0001,2]
[326475889,1714976644893,1096.053426,0.0001681,2]
[326475890,1714976828254,521.0,0.00017,2]
[326475891,1714976831903,20217.7745566,0.00017,2]
[326475892,1714976832306,-154.65974855,0.00017001,2]
[326475893,1714976832864,-95.34025145,0.00017001,2]
[326475894,1714976838745,793.57313981,0.00017,2]
[326475895,1714976840770,893.97688809,0.00017,2]
[326475896,1714976841652,309.16301887,0.00017,2]
[326475897,1714976843160,-461.60964242,0.00017001,2]
[326475898,1714976849663,7881.52969368,0.00017,2]
[326475899,1714976874578,154.67518212,9.999e-05,2]
[326475900,1714976946847,-2898.88264618,0.00017001,2]
[326475901,1714976947389,-163.73827254,0.00017158,2]
[326475902,1714976947569,-260.14019925,0.00017258,2]
[326475904,1714976956694,-250.0,0.0001742,2]
[326475905,1714976956904,-163.73827253,0.00017613,2]
[326475906,1714976956928,-151.0,0.00017857,2]
[326475907,1714976957102,-196.058026,0.00017857,2]
[326475908,1714976957124,-151.0,0.00017857,2]
[326475909,1714976958755,-163.73827253,0.00018068,2]
[326475910,1714976958990,-269.9342733,0.00018178,2]
[326475911,1714976959411,-7881.52969368,0.00018239,2]
[326475912,1714976959815,-793.57313981,0.0001824,2]
[326475913,1714976960029,-521.0,0.0001824,2]
[326475914,1714976960078,-223.1196424,0.00018241,2]
[326475915,1714976960291,-153.0,0.00018241,2]
[326475916,1714976960314,-153.0,0.00018241,2]
[326475917,1714976960336,-306.0,0.00018241,2]
[326475918,1714976960360,-306.6821139,0.000183,2]
[326475919,1714976960380,-292.065397,0.00018378,2]
[326475920,1714976960401,-292.065397,0.00018378,2]
[326475921,1714976960422,-227.971504,0.00018378,2]
[326475922,1714976960442,-168.933724,0.00018378,2]
[326475923,1714976960462,-153.0,0.00018378,2]
[326475924,1714976960482,-306.0,0.00018378,2]
[326475925,1714976960502,-153.0,0.00018378,2]
[326475926,1714976960523,-154.969166,0.00018378,2]
[326475927,1714976960542,-153.0,0.00018378,2]
[326475928,1714976960563,-153.0,0.00018378,2]
[326475929,1714976960583,-153.0,0.00018378,2]
[326475930,1714976960603,-153.0,0.00018378,2]
[326475931,1714976960623,-153.0,0.00018378,2]
[326475932,1714976960645,-153.0,0.00018378,2]
[326475933,1714976960666,-204.1392147,0.00018378,2]
[326475934,1714976960686,-153.0,0.00018378,2]
[326475935,1714976960709,-204.1392147,0.00018378,2]
[326475936,1714976960729,-153.0,0.00018378,2]
[326475937,1714976960749,-204.1392147,0.00018378,2]
[326475938,1714976960771,-153.0,0.00018378,2]
[326475939,1714976960792,-204.1392147,0.00018378,2]
[326475940,1714976960812,-306.0,0.00018378,2]
[326475941,1714976960833,-153.0,0.00018378,2]
[326475942,1714976960859,-153.0,0.00018378,2]
[326475943,1714976960880,-204.1392147,0.00018378,2]
[326475944,1714976960900,-204.1392147,0.00018378,2]
[326475945,1714976960921,-153.0,0.00018378,2]
[326475946,1714976960941,-153.0,0.00018378,2]
[326475947,1714976960961,-306.0,0.00018378,2]
[326475948,1714976960982,-159.3793715,0.00018378,2]
[326475949,1714976961002,-153.0,0.00018378,2]
[326475950,1714976961024,-204.1392147,0.00018378,2]
[326475951,1714976961273,-204.1392147,0.00018378,2]
[326475952,1714976961748,-156.6530782,0.00018378,2]
[326475953,1714976962254,-204.1392147,0.00018378,2]
[326475954,1714976962483,-204.1392147,0.00018378,2]
[326475955,1714976962722,-306.0,0.00018378,2]
[326475956,1714976963259,-153.5356756,0.00018378,2]
[326475957,1714976963533,-204.1392147,0.00018378,2]
[326475958,1714976963555,-204.1392147,0.00018378,2]
[326475959,1714976963575,-408.023809,0.00018378,2]
[326475960,1714976963599,-306.0,0.00018378,2]
[326475961,1714976963620,-153.0,0.00018378,2]
[326475962,1714976963640,-153.0,0.00018378,2]
[326475963,1714976963661,-153.0,0.00018378,2]
[326475964,1714976963682,-153.0,0.00018378,2]
[326475965,1714976963705,-204.1392147,0.000184,2]
[326475966,1714976963728,-306.0,0.000184,2]
[326475967,1714976963750,-153.0,0.00018493,2]
[326475968,1714976963771,-153.0,0.00018493,2]
[326475969,1714976963795,-1822.07924628,0.000185,2]
[326475970,1714976963842,-163.73827253,0.00018523,2]
[326475971,1714976963863,-153.0,0.0001863,2]
[326475972,1714976963884,-153.0,0.0001863,2]
[326475973,1714976963905,-153.0,0.0001863,2]
[326475974,1714976963926,-153.0,0.0001863,2]
[326475975,1714976963946,-153.0,0.0001863,2]
[326475976,1714976963966,-153.0,0.0001863,2]
[326475977,1714976963987,-153.0,0.0001863,2]
[326475978,1714976964007,-153.0,0.0001863,2]
[326475979,1714976964029,-153.0,0.00018652,2]
[326475980,1714976964050,-153.0,0.00018652,2]
[326475981,1714976964075,-153.0,0.00018652,2]
[326475982,1714976964103,-153.0,0.00018652,2]
[326475983,1714976964139,-153.0,0.00018652,2]
[326475984,1714976964162,-153.0,0.00018652,2]
[326475985,1714976964188,-153.0,0.0001874,2]
[326475986,1714976964211,-153.0,0.0001874,2]
[326475987,1714976964233,-421.28435675,0.00018748,2]
[326475988,1714976964255,-1000.0,0.00018777,2]
[326475989,1714976964276,-151.0,0.00018777,2]
[326475990,1714976964298,-715.5834779,0.00018787,2]
[326476025,1714977034710,-474.77151225,0.00018804,2]
[326476026,1714977034726,-457.7,0.00018834,3]
[326476027,1714977034736,-3455.83254005,0.00018862,2]
[326476028,1714977034747,-150.3,0.00018863,3]
[326476029,1714977034756,-474.77151224,0.00018872,2]
[326476030,1714977034766,-292.065397,0.000189,2]
[326476031,1714977034775,-292.065397,0.000189,2]
[326476032,1714977034784,-151.0,0.000189,2]
[326476033,1714977034795,-151.0,0.000189,2]
[326476034,1714977034804,-1963.56447594,0.000189,2]
[326476035,1714977034813,-153.0,0.00018904,2]
[326476036,1714977034822,-153.0,0.00018904,2]
[326476037,1714977034832,-204.1392147,0.00018904,2]
[326476038,1714977034841,-153.0,0.00018904,2]
[326476039,1714977034850,-204.1392147,0.00018904,2]
[326476040,1714977034859,-153.0,0.00018904,2]
[326476041,1714977034868,-153.0,0.00018904,2]
[326476042,1714977034878,-153.0,0.00018904,2]
[326476043,1714977034887,-153.0,0.00018904,2]
[326476044,1714977034897,-410.8975092,0.00018904,2]
[326476045,1714977034906,-153.0,0.00018904,2]
[326476046,1714977034916,-153.0,0.00018904,2]
[326476047,1714977034925,-153.0,0.00018904,2]
[326476048,1714977034934,-153.0,0.00018904,2]
[326476049,1714977034943,-153.0,0.00018904,2]
[326476050,1714977034953,-154.4028549,0.00018904,2]
[326476051,1714977034962,-259.446056,0.00018922,2]
[326476052,1714977034971,-151.0,0.00018922,2]
[326476053,1714977034979,-22.68228702,0.00018922,2]
[326476118,1714977097380,14676.59863195,0.00017959,2]
[326476119,1714977097404,3015.18421327,0.00017959,2]
[326476120,1714977097426,7208.21715478,0.00017959,2]
[326476122,1714977129092,1493.3459025,9.999e-05,2]
[326476123,1714977138991,671.02480693,0.00017959,2]
[326476124,1714977140118,159.6498128,0.00017959,2]
[326476138,1714977211223,929.6379252,0.00014,2]
[326476160,1714977313705,14864.23764688,0.00014,2]
[326476161,1714977325282,154.67518212,0.00014,2]
[326476162,1714977340915,154.67518212,0.00014,2]
[326476163,1714977355261,1712.9168005,9.999e-05,2]
[326476165,1714977466295,893.97688809,0.00016,2]
[326476166,1714977576290,769.97551352,0.0001,2]
[326476167,1714977642541,165.845338,0.0001589,2]
[326476168,1714977703989,548.026713,0.00016556,2]
[326476169,1714977748299,250.0,0.00016556,2]
[326476171,1714977829839,712.68814982,0.00017,2]